bitfinex/quotes_SOLUSD_20220306
["timestamp","ask_amount","ask_price","bid_price","bid_amount"]
[1646546223628,113.1,88.388,88.309,23.4134]
[1646546223829,2.745,88.387,88.31,5.659]
[1646546224028,2.745,88.387,88.31,30.65960786]
[1646546224227,2.745,88.387,88.311,62.55252922]
[1646546224531,2.745,88.387,88.312,5.659]
[1646546226129,2.745,88.387,88.311,87.55313708]
[1646546227231,2.745,88.387,88.312,25.00060786]
[1646546229032,0.52865871,88.386,88.312,25.00060786]
[1646546229235,2.717,88.385,88.312,25.00060786]
[1646546229436,0.52865871,88.386,88.313,5.659]
[1646546229834,0.52865871,88.386,88.314,27.83674312]
[1646546230041,0.52865871,88.386,88.315,5.659]
[1646546231839,0.52865871,88.386,88.316,27.83674312]
[1646546232139,0.52865871,88.386,88.317,5.659]
[1646546232338,0.52865871,88.386,88.32,33.3429]
[1646546232539,0.52865871,88.386,88.321,5.659]
[1646546232739,0.52865871,88.386,88.322,22.8391]
[1646546232939,0.52865871,88.386,88.323,5.659]
[1646546233139,0.52865871,88.386,88.323,27.83674312]
[1646546233339,0.52865871,88.386,88.324,2.83613526]
[1646546233540,0.52865871,88.386,88.324,27.83674312]
[1646546233739,0.52865871,88.386,88.325,25.00060786]
[1646546233943,0.52865871,88.386,88.34,16.36]
[1646546234139,0.52865871,88.386,88.342,47.03083024]
[1646546234339,51.78713048,88.397,88.343,5.658]
[1646546234340,52.31686389,88.397,88.343,5.658]
[1646546234540,52.31686389,88.397,88.343,8.49413526]
[1646546234740,52.31686389,88.397,88.344,2.83613526]
[1646546235159,0.52973341,88.397,88.35,16.976]
[1646546235359,0.52973341,88.397,88.351,24.7566]
[1646546235560,0.52973341,88.397,88.352,5.657]
[1646546235960,0.52973341,88.397,88.352,8.49313526]
[1646546236160,0.52973341,88.397,88.353,2.83613526]
[1646546236363,0.52973341,88.397,88.354,5.657]
[1646546239366,63.29514915,88.437,88.354,5.657]
[1646546239665,113.1,88.436,88.354,5.657]
[1646546240264,63.29514915,88.437,88.354,5.657]
[1646546240465,2.718,88.436,88.36,16.9746]
[1646546240664,2.718,88.436,88.361,29.5064]
[1646546244466,0.53617736,88.435,88.361,29.5064]
[1646546246470,1.53888845,88.433,88.361,29.5064]
[1646546248670,1.53888845,88.434,88.361,29.5064]
[1646546249473,1.53888845,88.432,88.361,29.5064]
[1646546250171,1.53888845,88.427,88.361,23.8504]
[1646546250371,4.25788845,88.426,88.361,23.8504]
[1646546250770,22.6337,88.425,88.361,23.8504]
[1646546253672,1.53888845,88.421,88.361,23.8504]
[1646546253872,1.53888845,88.419,88.361,23.8504]
[1646546254074,2.722,88.418,88.361,23.8504]
[1646546254272,4.26088845,88.418,88.361,23.8504]
[1646546254472,1.53888845,88.417,88.361,23.8504]
[1646546254674,2.723,88.416,88.361,23.8504]
[1646546254872,1.53888845,88.418,88.361,23.8504]
[1646546255072,1.53888845,88.417,88.361,23.8504]
[1646546255872,1.53888845,88.418,88.361,23.8504]
[1646546256073,2.726,88.417,88.361,23.8504]
[1646546256472,2.727,88.419,88.361,23.8504]
[1646546256673,1.53888845,88.42,88.362,5.656]
[1646546257675,1.53888845,88.421,88.362,5.656]
[1646546257874,1.53888845,88.42,88.362,5.656]
[1646546258375,1.53888845,88.418,88.362,5.656]
[1646546258575,1.53888845,88.422,88.363,2.83613526]
[1646546258775,0.53449022,88.424,88.363,2.83613526]
[1646546258975,2.07230482,88.426,88.363,2.83613526]
[1646546259373,1.53888845,88.425,88.363,2.83613526]
[1646546260375,1.53888845,88.422,88.362,5.656]
[1646546260674,1.53888845,88.421,88.362,5.656]
[1646546261279,1.53888845,88.42,88.362,5.656]
[1646546261673,1.53888845,88.419,88.362,5.656]
[1646546261875,1.53888845,88.418,88.362,5.656]
[1646546262274,1.53888845,88.411,88.362,5.656]
[1646546262476,1.53888845,88.404,88.362,5.656]
[1646546262678,1.53888845,88.403,88.362,5.656]
[1646546263075,53.39282867,88.402,88.362,5.656]
[1646546263676,53.39282867,88.402,88.34,54.78964784]
[1646546263876,1.53888845,88.4,88.341,24.247]
[1646546264076,1.53888845,88.399,88.341,24.247]
[1646546265279,1.53888845,88.4,88.341,24.247]
[1646546267682,1.53888845,88.397,88.341,24.247]
[1646546268482,1.53888845,88.396,88.341,24.247]
[1646546268707,1.53888845,88.397,88.341,24.247]
[1646546269786,1.53888845,88.398,88.341,24.247]
[1646546270587,1.53888845,88.399,88.341,24.247]
[1646546271186,0.53080775,88.4,88.341,24.247]
[1646546271587,4.7856962,88.4,88.341,24.247]
[1646546272189,3.24680775,88.4,88.341,24.247]
[1646546272792,4.7856962,88.4,88.341,24.247]
[1646546273188,0.53080775,88.4,88.341,24.247]
[1646546273990,0.53050078,88.398,88.341,24.247]
[1646546275690,0.53050078,88.398,88.342,2.83613526]
[1646546277918,2.06938923,88.398,88.341,24.247]
[1646546278114,1.53888845,88.397,88.341,24.247]
[1646546278516,1.53888845,88.391,88.341,24.247]
[1646546278716,1.53888845,88.39,88.341,24.247]
[1646546278914,1.53888845,88.391,88.341,24.247]
[1646546279315,1.53888845,88.39,88.341,24.247]
[1646546281015,1.53888845,88.391,88.341,24.247]
[1646546281618,1.53888845,88.392,88.341,24.247]
[1646546281817,1.53888845,88.392,88.342,5.658]
[1646546284120,0.52911928,88.389,88.342,5.658]
[1646546289022,2.06908235,88.393,88.342,5.658]
[1646546289424,0.5301939,88.393,88.342,5.658]
[1646546289822,0.5301939,88.393,88.342,5.158]
[1646546290626,1.53888845,88.392,88.342,5.158]
[1646546292628,1.53888845,88.391,88.342,5.158]
[1646546293629,1.53888845,88.39,88.342,5.158]
[1646546294730,1.53888845,88.389,88.342,5.158]
[1646546295429,113.1,88.388,88.3,16.36]
[1646546295630,1.53888845,88.386,88.291,46.4659]
[1646546295834,1.53888845,88.373,88.301,21.35156056]
[1646546296030,1.53888845,88.369,88.301,21.35156056]
[1646546296232,113.1,88.368,88.292,21.35156056]
[1646546296434,1.53888845,88.355,88.292,21.35156056]
[1646546296635,1.53888845,88.355,88.262,78.2025]
[1646546296835,1.53888845,88.354,88.263,22.5287]
[1646546297137,1.53888845,88.328,88.263,22.5287]
[1646546297334,1.53888845,88.326,88.251,23.9372]
[1646546297634,113.1,88.323,88.251,23.9372]
[1646546297836,3.221,88.322,88.251,23.9372]
[1646546298239,113.1,88.319,88.251,23.9372]
[1646546298838,67.92,88.314,88.242,24.0529]
[1646546299039,1.53888845,88.305,88.242,24.0529]
[1646546299236,116.324,88.304,88.242,24.0529]
[1646546299437,113.1,88.304,88.242,24.0529]
[1646546299735,3.227,88.303,88.242,24.0529]
[1646546300136,67.92,88.299,88.225,2.83613526]
[1646546300336,67.92,88.293,88.207,2.83613526]
[1646546300537,67.92,88.287,88.196,2.83613526]
[1646546300735,181.02,88.28,88.196,2.83613526]
[1646546300935,3.206,88.279,88.196,2.83613526]
[1646546301139,113.1,88.277,88.197,51.06556224]
[1646546301335,3.199,88.276,88.197,51.06556224]
[1646546301737,113.1,88.277,88.197,51.06556224]
[1646546302138,113.1,88.269,88.197,51.06556224]
[1646546302337,119.52,88.269,88.198,2.83613526]
[1646546304039,62.48280434,88.278,88.198,2.83613526]
[1646546304239,62.48280434,88.278,88.198,25.28458312]
[1646546304640,3.243,88.277,88.198,25.28458312]
[1646546305139,116.343,88.277,88.198,25.28458312]
[1646546306143,116.343,88.277,88.198,2.83613526]
[1646546306640,113.1,88.269,88.198,2.83613526]
[1646546306841,3.267,88.268,88.198,2.83613526]
[1646546309541,3.267,88.268,88.199,5.666]
[1646546310345,3.241,88.276,88.198,5.666]
[1646546312747,113.1,88.277,88.2,17.0056]
[1646546313047,62.48280434,88.278,88.201,5.666]
[1646546313548,62.48280434,88.278,88.201,8.50213526]
[1646546314147,62.48280434,88.278,88.201,5.666]
[1646546316152,113.1,88.277,88.201,5.666]
[1646546316349,3.162,88.276,88.2,33.366]
[1646546316750,3.136,88.277,88.2,33.366]
[1646546316953,62.48280434,88.278,88.21,17.0042]
[1646546317151,62.48280434,88.278,88.211,28.9533]
[1646546322673,62.48280434,88.278,88.211,23.2873]
[1646546322871,113.1,88.277,88.211,23.2873]
[1646546323073,120.02,88.277,88.211,23.2873]
[1646546323474,3.216,88.276,88.211,23.2873]
[1646546326478,1.53888845,88.271,88.211,23.2873]
[1646546326675,1.53888845,88.271,88.212,5.666]
[1646546326877,1.53888845,88.272,88.212,5.666]
[1646546328478,1.53888845,88.273,88.212,5.666]
[1646546328678,1.53888845,88.272,88.212,5.666]
[1646546329078,1.53888845,88.274,88.212,5.666]
[1646546329478,1.53888845,88.27,88.212,5.666]
[1646546329878,1.53888845,88.27,88.211,23.2873]
[1646546330480,1.53888845,88.269,88.211,23.2873]
[1646546330885,1.53888845,88.27,88.211,23.2873]
[1646546332385,1.53888845,88.269,88.211,23.2873]
[1646546332581,1.53888845,88.27,88.211,23.2873]
[1646546332784,1.53888845,88.27,88.212,5.666]
[1646546333382,1.53888845,88.269,88.212,5.666]
[1646546333784,1.53888845,88.269,88.211,23.2873]
[1646546333983,1.53888845,88.267,88.211,23.2873]
[1646546335784,1.53888845,88.261,88.211,23.2873]
[1646546335985,1.53888845,88.262,88.211,23.2873]
[1646546336186,3.223,88.261,88.211,23.2873]
[1646546337689,3.226,88.262,88.211,23.2873]
[1646546338491,3.219,88.263,88.211,23.2873]
[1646546338893,1.53888845,88.265,88.211,23.2873]
[1646546339095,1.53888845,88.267,88.211,23.2873]
[1646546339491,1.53888845,88.268,88.211,23.2873]
[1646546339693,1.53888845,88.27,88.211,23.2873]
[1646546339894,1.53888845,88.269,88.211,23.2873]
[1646546340690,1.53888845,88.268,88.211,23.2873]
[1646546340890,1.53888845,88.267,88.211,23.2873]
[1646546341294,1.53888845,88.268,88.211,23.2873]
[1646546341792,1.53888845,88.269,88.211,23.2873]
[1646546343195,1.53888845,88.27,88.211,23.2873]
[1646546344297,1.53888845,88.272,88.211,23.2873]
[1646546344499,1.53888845,88.271,88.211,23.2873]
[1646546345999,1.53888845,88.272,88.211,23.2873]
[1646546346200,1.53888845,88.271,88.211,23.2873]
[1646546347299,1.53888845,88.272,88.211,23.2873]
[1646546347702,1.53888845,88.274,88.211,23.2873]
[1646546347902,1.53888845,88.273,88.211,23.2873]
[1646546350303,1.53888845,88.272,88.211,23.2873]
[1646546351107,1.53888845,88.271,88.211,23.2873]
[1646546351706,1.53888845,88.272,88.211,23.2873]
[1646546352507,1.53888845,88.271,88.211,23.2873]
[1646546354208,1.53888845,88.272,88.211,23.2873]
[1646546354409,3.217,88.271,88.211,23.2873]
[1646546355910,4.75588845,88.271,88.211,23.2873]
[1646546356110,1.53888845,88.272,88.211,23.2873]
[1646546356309,3.251,88.271,88.211,23.2873]
[1646546356511,4.78988845,88.271,88.211,23.2873]
[1646546356709,1.53888845,88.272,88.211,23.2873]
[1646546357112,1.53888845,88.271,88.211,23.2873]
[1646546358012,1.53888845,88.27,88.211,23.2873]
[1646546358214,9.68888845,88.27,88.211,23.2873]
[1646546359333,8.15,88.27,88.211,23.2873]
[1646546359534,11.367,88.27,88.211,23.2873]
[1646546359731,4.75588845,88.27,88.211,23.2873]
[1646546359931,1.53888845,88.27,88.211,23.2873]
[1646546360136,1.53888845,88.266,88.211,23.2873]
[1646546360333,1.53888845,88.264,88.211,23.2873]
[1646546360533,3.013,88.263,88.211,23.2873]
[1646546361235,2.962,88.264,88.211,23.2873]
[1646546363337,4.50088845,88.264,88.211,23.2873]
[1646546363534,2.962,88.264,88.211,23.2873]
[1646546364136,4.50088845,88.264,88.211,23.2873]
[1646546365238,2.962,88.264,88.211,23.2873]
[1646546366437,3.165,88.268,88.211,23.2873]
[1646546366638,3.165,88.268,88.212,5.666]
[1646546367638,1.23702627,88.27,88.212,5.666]
[1646546369242,22.9313,88.276,88.212,5.666]
[1646546372444,3.217,88.275,88.212,5.666]
[1646546373346,22.9313,88.276,88.212,5.666]
[1646546373548,26.36261948,88.303,88.212,5.666]
[1646546373549,3.112,88.295,88.212,13.876]
[1646546373747,27.6266,88.302,88.213,45.89155174]
[1646546373947,6.1965595,88.301,88.214,5.665]
[1646546374147,6.1965595,88.301,88.214,54.392687]
[1646546374346,3.218,88.306,88.214,50.77844874]
[1646546374647,3.08193139,88.314,88.214,50.77844874]
[1646546374648,47.57345685,88.3,88.22,17.0022]
[1646546374846,47.57345685,88.3,88.231,64.09738114]
[1646546375047,47.57345685,88.3,88.232,29.9728]
[1646546375448,47.57345685,88.3,88.232,24.3088]
[1646546377349,47.57345685,88.3,88.232,41.3911]
[1646546378556,47.57345685,88.3,88.233,5.664]
[1646546380554,3.271,88.299,88.232,41.3911]
[1646546381155,26.0076,88.299,88.232,41.3911]
[1646546381855,26.0076,88.299,88.233,5.664]
[1646546382657,26.0076,88.299,88.232,24.3088]
[1646546383456,22.7366,88.299,88.233,5.664]
[1646546385859,3.162,88.298,88.232,24.3088]
[1646546387764,116.262,88.298,88.232,24.3088]
[1646546389568,3.162,88.298,88.232,24.3088]
[1646546389770,3.162,88.298,88.233,5.664]
[1646546390767,22.7366,88.299,88.233,5.664]
[1646546392789,22.7366,88.299,88.232,24.3088]
[1646546393592,25.8986,88.299,88.232,24.3088]
[1646546395196,138.59595282,88.298,88.232,24.3088]
[1646546395394,3.162,88.297,88.232,24.3088]
[1646546395594,113.1,88.289,88.197,24.61465467]
[1646546395794,3.162,88.288,88.203,24.5236]
[1646546396194,115.05608237,88.287,88.204,60.26562471]
[1646546396394,3.162,88.286,88.204,60.26562471]
[1646546396795,113.1,88.285,88.204,60.26562471]
[1646546396993,113.1,88.283,88.204,60.26562471]
[1646546397193,3.162,88.282,88.204,60.26562471]
[1646546397794,71.082,88.282,88.204,60.26562471]
[1646546397994,113.1,88.277,88.204,60.26562471]
[1646546398196,113.1,88.269,88.204,60.26562471]
[1646546398394,3.162,88.268,88.204,60.26562471]
[1646546398595,113.1,88.267,88.204,60.26562471]
[1646546398795,3.162,88.266,88.204,60.26562471]
[1646546399595,3.162,88.266,88.203,24.5236]
[1646546401598,17.0151,88.26,88.203,24.5236]
[1646546401796,116.317,88.259,88.203,24.5236]
[1646546402397,116.317,88.259,88.16,16.36]
[1646546402398,116.317,88.259,88.164,16.8392]
[1646546402598,113.1,88.249,88.165,48.88026299]
[1646546402796,3.271,88.248,88.165,48.88026299]
[1646546403200,113.1,88.246,88.165,48.88026299]
[1646546403598,113.1,88.246,88.165,73.08720551]
[1646546405201,113.1,88.246,88.165,72.58720551]
[1646546405402,113.1,88.244,88.165,72.58720551]
[1646546405601,3.217,88.243,88.165,72.58720551]
[1646546410605,3.217,88.243,88.165,48.38026299]
[1646546413407,113.1,88.244,88.165,48.38026299]
[1646546414206,63.54759222,88.245,88.165,48.38026299]
[1646546415206,113.1,88.244,88.165,48.38026299]
[1646546415408,121.59,88.244,88.165,48.38026299]
[1646546416707,113.1,88.239,88.165,48.38026299]
[1646546417109,113.1,88.239,88.161,47.3895]
[1646546417508,1.95626111,88.238,88.161,47.3895]
[1646546418109,1.95626111,88.238,88.162,59.97020563]
[1646546418308,113.1,88.236,88.162,59.97020563]
[1646546420515,113.1,88.236,88.163,5.668]
[1646546421314,3.217,88.235,88.163,5.668]
[1646546422315,3.217,88.236,88.163,5.668]
[1646546423116,3.217,88.236,88.17,17.0115]
[1646546423317,3.217,88.261,88.18,16.36]
[1646546423516,3.217,88.265,88.181,30.2341]
[1646546423716,24.0571,88.266,88.182,56.56]
[1646546423917,24.0571,88.266,88.183,5.667]
[1646546424114,24.0571,88.266,88.19,17.0062]
[1646546424314,24.0571,88.266,88.2,16.36]
[1646546424517,51.21520041,88.265,88.201,30.2321]
[1646546428121,3.217,88.264,88.201,30.2321]
[1646546428623,116.317,88.264,88.201,30.2321]
[1646546428825,116.317,88.264,88.201,24.5661]
[1646546431424,3.217,88.264,88.201,24.5661]
[1646546432027,116.317,88.264,88.201,24.5661]
[1646546432227,113.1,88.264,88.201,24.5661]
[1646546432429,3.216,88.263,88.201,24.5661]
[1646546434954,51.21520041,88.265,88.201,24.5661]
[1646546439861,24.0571,88.266,88.201,24.5661]
[1646546440864,59.9564119,88.265,88.201,24.5661]
[1646546444066,3.217,88.287,88.201,24.5661]
[1646546444272,3.217,88.287,88.202,2.83613526]
[1646546444965,50.25761967,88.286,88.202,2.83613526]
[1646546445171,3.217,88.285,88.202,2.83613526]
[1646546452380,6.19823973,88.284,88.202,2.83613526]
[1646546452580,6.19823973,88.285,88.202,2.83613526]
[1646546452780,50.25761967,88.286,88.202,2.83613526]
[1646546453882,50.25761967,88.286,88.21,17.0018]
[1646546454082,50.25761967,88.286,88.211,79.84462847]
[1646546454283,50.25761967,88.286,88.211,82.68076373]
[1646546456087,3.217,88.285,88.211,82.68076373]
[1646546456286,3.217,88.285,88.211,99.74106373]
[1646546458887,50.25761967,88.286,88.211,99.74106373]
[1646546461010,50.25761967,88.286,88.212,2.83613526]
[1646546462218,50.25761967,88.286,88.212,59.39613526]
[1646546462517,50.25761967,88.286,88.213,2.83613526]
[1646546468818,50.25761967,88.286,88.22,17.0002]
[1646546469019,50.25761967,88.286,88.22,33.3602]
[1646546469418,50.25761967,88.286,88.221,24.4846]
[1646546469820,23.389,88.288,88.222,2.83613526]
[1646546470017,27.661,88.309,88.222,2.83613526]
[1646546470217,22.9241,88.308,88.23,16.9981]
[1646546470422,29.12060051,88.308,88.23,33.3581]
[1646546470619,6.19650051,88.307,88.23,33.3581]
[1646546470819,61.9213689,88.306,88.231,85.56822826]
[1646546471219,61.9213689,88.306,88.232,2.83613526]
[1646546472228,61.9213689,88.306,88.232,59.39613526]
[1646546472724,61.9213689,88.306,88.233,2.83613526]
[1646546473522,61.9213689,88.306,88.24,16.9963]
[1646546473729,3.217,88.32,88.24,33.3563]
[1646546473930,23.73,88.33,88.241,25.34683526]
[1646546474123,23.73,88.33,88.241,77.71964576]
[1646546474324,23.73,88.33,88.242,55.20894576]
[1646546474527,23.73,88.33,88.242,168.30894576]
[1646546474724,49.79728749,88.329,88.26,16.9929]
[1646546474924,49.79728749,88.329,88.27,16.36]
[1646546475126,49.79728749,88.329,88.271,22.5107]
[1646546490539,1.53638704,88.328,88.271,22.5107]
[1646546490738,1.53638704,88.326,88.271,22.5107]
[1646546491140,1.53638704,88.325,88.271,22.5107]
[1646546491340,1.53638704,88.324,88.271,22.5107]
[1646546491540,1.53638704,88.326,88.271,22.5107]
[1646546492838,1.53638704,88.327,88.271,22.5107]
[1646546493038,1.53638704,88.325,88.271,22.5107]
[1646546493239,1.53638704,88.326,88.271,22.5107]
[1646546493767,1.53638704,88.328,88.271,22.5107]
[1646546493965,1.53638704,88.326,88.271,22.5107]
[1646546494365,1.53638704,88.327,88.271,22.5107]
[1646546494769,1.53638704,88.326,88.271,22.5107]
[1646546495567,1.53638704,88.325,88.271,22.5107]
[1646546495968,1.53638704,88.326,88.271,22.5107]
[1646546496368,1.53638704,88.323,88.271,22.5107]
[1646546497868,1.53638704,88.321,88.272,2.83613526]
[1646546498070,1.53638704,88.327,88.272,2.83613526]
[1646546498772,1.53638704,88.323,88.272,2.83613526]
[1646546499172,1.53638704,88.322,88.272,2.83613526]
[1646546500874,1.53638704,88.319,88.272,2.83613526]
[1646546502074,1.53638704,88.32,88.272,2.83613526]
[1646546503083,1.53638704,88.315,88.272,2.83613526]
[1646546503277,59.7417451,88.314,88.272,2.83613526]
[1646546503477,61.27813214,88.314,88.272,2.83613526]
[1646546505077,1.53638704,88.313,88.272,2.83613526]
[1646546505477,1.53638704,88.312,88.272,2.83613526]
[1646546505679,1.53638704,88.311,88.272,2.83613526]
[1646546506679,1.53638704,88.312,88.272,2.83613526]
[1646546507178,1.53638704,88.311,88.272,2.83613526]
[1646546507379,1.53638704,88.312,88.272,2.83613526]
[1646546508779,1.53638704,88.311,88.272,2.83613526]
[1646546508983,1.53638704,88.31,88.272,2.83613526]
[1646546509881,1.53638704,88.311,88.272,2.83613526]
[1646546511283,1.53638704,88.314,88.272,2.83613526]
[1646546511484,1.53638704,88.323,88.272,2.83613526]
[1646546511884,50.25734915,88.322,88.272,2.83613526]
[1646546512282,51.79373619,88.322,88.272,2.83613526]
[1646546512783,50.25734915,88.322,88.272,2.83613526]
[1646546513885,50.25734915,88.322,88.271,3.21373341]
[1646546514087,50.25734915,88.322,88.27,16.36]
[1646546514484,1.53638704,88.321,88.27,16.36]
[1646546514685,1.53638704,88.321,88.271,24.3576]
[1646546514886,1.53638704,88.32,88.271,24.3576]
[1646546515385,23.3401,88.319,88.271,24.3576]
[1646546522491,1.53638704,88.32,88.272,25.00817586]
[1646546522691,1.53638704,88.32,88.273,5.662]
[1646546522891,1.53638704,88.32,88.273,65.05813526]
[1646546523091,1.53638704,88.32,88.274,2.83613526]
[1646546523291,1.53638704,88.321,88.277,56.56]
[1646546523691,1.53638704,88.321,88.278,5.662]
[1646546524393,1.53638704,88.32,88.278,5.662]
[1646546524794,1.53638704,88.322,88.278,5.662]
[1646546524991,1.53638704,88.321,88.278,5.662]
[1646546525793,1.53638704,88.32,88.278,5.662]
[1646546525993,1.53638704,88.321,88.278,5.662]
[1646546526392,1.53638704,88.32,88.278,5.662]
[1646546526791,1.53638704,88.321,88.278,5.662]
[1646546526998,1.53638704,88.321,88.277,56.56]
[1646546527393,1.53638704,88.322,88.277,56.56]
[1646546527592,1.53638704,88.321,88.277,56.56]
[1646546528095,1.53638704,88.322,88.277,56.56]
[1646546528292,1.53638704,88.323,88.277,56.56]
[1646546528493,1.53638704,88.321,88.277,56.56]
[1646546528893,1.53638704,88.322,88.277,56.56]
[1646546529093,1.53638704,88.321,88.277,56.56]
[1646546530094,1.53638704,88.321,88.278,5.662]
[1646546530295,1.53638704,88.327,88.278,5.662]
[1646546530695,1.53638704,88.327,88.28,16.36]
[1646546530895,1.53638704,88.333,88.281,5.662]
[1646546531094,1.53638704,88.336,88.282,23.9408]
[1646546531294,25.93638704,88.342,88.283,5.66]
[1646546531499,24.4,88.342,88.283,8.49613526]
[1646546531695,1.53638704,88.347,88.284,25.00817586]
[1646546531896,1.03638704,88.348,88.29,16.9869]
[1646546532098,6.19206695,88.367,88.3,16.36]
[1646546532297,23.3908,88.368,88.301,29.4063]
[1646546532497,23.3908,88.368,88.302,48.7185535]
[1646546532697,23.3908,88.368,88.303,5.66]
[1646546532896,23.3908,88.368,88.303,65.05613526]
[1646546533298,23.3908,88.368,88.311,56.56]
[1646546533499,23.3908,88.368,88.32,16.36]
[1646546533701,23.3908,88.368,88.321,90.77936446]
[1646546534498,23.3908,88.368,88.321,98.20936446]
[1646546535498,23.3908,88.368,88.321,90.77936446]
[1646546538903,0.7009881,88.367,88.321,90.77936446]
[1646546542709,0.7009881,88.367,88.322,2.83613526]
[1646546542908,0.7009881,88.367,88.323,5.659]
[1646546543913,59.45518887,88.373,88.323,5.659]
[1646546544714,59.45518887,88.373,88.323,2.83613526]
[1646546544914,59.45518887,88.373,88.324,5.659]
[1646546545820,59.45518887,88.373,88.323,19.73623526]
[1646546546620,59.45518887,88.373,88.33,16.9794]
[1646546547018,59.45518887,88.373,88.331,30.2832]
[1646546559647,0.70201206,88.373,88.331,30.2832]
[1646546560249,0.70201206,88.373,88.332,2.83613526]
[1646546561251,0.70201206,88.373,88.332,59.39613526]
[1646546561549,0.70201206,88.373,88.332,56.56]
[1646546561749,0.70201206,88.373,88.333,2.83613526]
[1646546562149,0.70201206,88.373,88.34,16.9772]
[1646546562351,0.70201206,88.373,88.341,24.1149]
[1646546564050,24.28154058,88.385,88.341,24.1149]
[1646546569361,23.5783,88.385,88.341,24.1149]
[1646546570058,23.5783,88.385,88.32,16.36]
[1646546570257,113.1,88.384,88.314,2.83613526]
[1646546570459,3.124,88.383,88.314,2.83613526]
[1646546570860,3.078,88.384,88.314,2.83613526]
[1646546571060,3.078,88.384,88.315,60.35179237]
[1646546571460,6.19151668,88.383,88.315,60.35179237]
[1646546571662,3.032,88.382,88.315,60.35179237]
[1646546571861,6.19151668,88.381,88.315,60.35179237]
[1646546572063,2.986,88.38,88.315,60.35179237]
[1646546572462,6.19158686,88.379,88.315,60.35179237]
[1646546572662,6.19158686,88.383,88.315,60.35179237]
[1646546572864,3.263,88.382,88.315,60.35179237]
[1646546573064,6.19158686,88.381,88.315,60.35179237]
[1646546573262,3.263,88.382,88.315,60.35179237]
[1646546573464,3.263,88.382,88.315,85.35996823]
[1646546575369,23.5783,88.385,88.315,85.35996823]
[1646546575567,23.5783,88.385,88.316,23.0925]
[1646546575768,23.5783,88.385,88.32,16.9831]
[1646546576167,23.5783,88.385,88.32,41.99127586]
[1646546578269,23.5783,88.385,88.321,5.659]
[1646546580470,23.5783,88.385,88.32,16.9831]
[1646546581170,6.19114942,88.384,88.32,16.9831]
[1646546582470,6.19114942,88.384,88.32,33.3431]
[1646546582673,23.5783,88.385,88.321,5.659]
[1646546587884,23.5783,88.385,88.32,33.3431]
[1646546588483,3.217,88.384,88.32,33.3431]
[1646546591507,3.217,88.384,88.32,16.36]
[1646546593309,23.5783,88.385,88.32,16.36]
[1646546594413,23.5783,88.385,88.32,33.3428]
[1646546597016,23.5783,88.385,88.316,23.0925]
[1646546597418,6.19094823,88.384,88.316,23.0925]
[1646546599216,3.217,88.383,88.316,23.0925]
[1646546599421,6.19094823,88.382,88.316,23.0925]
[1646546599816,6.19094823,88.383,88.316,23.0925]
[1646546601317,113.1,88.382,88.316,23.0925]
[1646546601518,3.08193139,88.374,88.29,2.83613526]
[1646546601719,3.08193139,88.367,88.291,24.7291]
[1646546601920,113.1,88.365,88.291,24.7291]
[1646546602121,3.217,88.364,88.27,16.36]
[1646546602320,113.1,88.361,88.272,49.13653098]
[1646546602544,116.317,88.361,88.272,49.13653098]
[1646546602723,113.1,88.359,88.273,25.00817586]
[1646546602921,113.1,88.359,88.273,52.36856383]
[1646546603122,113.1,88.357,88.274,27.36038797]
[1646546603323,113.1,88.357,88.274,52.36856383]
[1646546603523,113.1,88.357,88.275,25.00817586]
[1646546603829,113.1,88.357,88.275,52.36856383]
[1646546604024,113.1,88.359,88.276,27.36038797]
[1646546604223,113.1,88.359,88.276,52.36856383]
[1646546604424,113.1,88.359,88.277,25.00817586]
[1646546605325,113.1,88.359,88.277,52.36856383]